bitfinex/quotes_ETHUSD_20241203
["timestamp","ask_amount","ask_price","bid_price","bid_amount"]
[1733193453515,2.65481529,3641.1,3640.1,1.1127]
[1733193453516,2.65481529,3641.1,3641.0,2.74649]
[1733193453701,3.20481529,3641.1,3641.0,2.74649]
[1733193453917,3.20481529,3641.1,3640.8,2.74663]
[1733193454118,1.06935857,3641.0,3640.1,1.1127]
[1733193454429,1.06935857,3641.0,3640.9,2.74657]
[1733193462821,1.06935857,3641.0,3640.4,2.74689]
[1733193462822,1.06935857,3641.0,3640.7,2.74665]
[1733193463026,1.06935857,3641.0,3640.7,2.74668]
[1733193463422,1.06935857,3641.0,3640.8,0.05409135]
[1733193463861,0.55,3640.8,3640.4,2.74692]
[1733193464079,0.55,3640.8,3640.4,2.74687]
[1733193464221,0.55,3640.8,3640.1,4.1127]
[1733193464566,0.55,3640.8,3640.5,2.74687]
[1733193465675,0.42625427,3640.9,3640.7,2.74672]
[1733193465826,2.65481529,3641.1,3640.8,2.74663]
[1733193466659,2.65481529,3641.1,3640.6,2.74679]
[1733193467726,0.55,3641.0,3640.6,2.74679]
[1733193469879,1.1828,3641.6,3641.2,2.74627]
[1733193470077,4.09429366,3642.0,3641.3,2.74626]
[1733193470283,0.52549791,3641.9,3641.3,2.74626]
[1733193470485,0.52549791,3641.9,3641.3,2.71798717]
[1733193470796,1.1828,3642.0,3641.4,0.02746072]
[1733193470980,0.75,3642.1,3641.4,1.1069]
[1733193471287,0.75,3642.1,3641.4,3.85309]
[1733193472392,0.75,3642.1,3641.8,2.74586]
[1733193472750,0.55,3642.0,3641.8,2.74586]
[1733193473294,0.75,3642.1,3641.9,2.74581]
[1733193473449,0.75,3642.1,3641.4,1.1069]
[1733193473791,0.54529458,3642.2,3641.4,1.1069]
[1733193474086,2.65481529,3642.5,3642.2,2.74556]
[1733193474587,2.65481529,3642.5,3641.5,2.74612]
[1733193474588,2.65481529,3642.5,3642.0,3.91853]
[1733193475388,2.65481529,3642.5,3642.1,2.74564]
[1733193475747,0.55,3642.2,3642.1,2.74564]
[1733193478226,0.55,3642.2,3642.1,2.79867395]
[1733193478933,0.55,3642.2,3642.1,0.05303395]
[1733193479088,2.1040677,3642.2,3642.1,0.05303395]
[1733193479430,4.8496877,3642.2,3641.0,2.74648]
[1733193479625,1.7297,3641.5,3640.8,2.74662]
[1733193479926,0.55,3641.1,3640.7,2.74671]
[1733193480818,0.55,3640.7,3640.0,1.1589]
[1733193481015,0.55,3640.3,3640.0,1.1589]
[1733193481200,0.55,3640.3,3640.2,2.7471]
[1733193481823,0.55,3640.3,3640.0,1.1589]
[1733193482033,0.55,3640.7,3639.7,1.1242]
[1733193482218,0.55,3640.7,3640.4,2.74688]
[1733193482410,0.55,3640.7,3640.6,2.74679]
[1733193483630,0.55,3640.7,3639.7,7.26330521]
[1733193483631,0.55,3640.7,3639.7,1.51583521]
[1733193483830,0.55,3640.7,3639.7,4.1242]
[1733193484040,0.55,3640.7,3640.5,2.74685]
[1733193484200,0.55,3640.7,3639.8,2.7474]
[1733193484397,0.55,3640.7,3640.6,2.74679]
[1733193485079,0.55,3640.7,3640.1,2.74717]
[1733193485281,0.55,3640.7,3640.1,2.74712]
[1733193485583,0.86648153,3640.7,3640.2,2.74707]
[1733193486875,0.86648153,3640.7,3640.0,2.74723]
[1733193487180,2.65481529,3640.4,3640.0,2.74723]
[1733193487394,0.55,3640.3,3640.0,2.74723]
[1733193489573,0.55,3640.3,3640.1,2.74716]
[1733193491185,0.55,3640.3,3639.7,1.1242]
[1733193491381,0.55,3640.3,3639.9,2.74732]
[1733193491772,0.55,3640.3,3640.0,2.74722]
[1733193492173,0.55,3640.3,3640.2,2.7471]
[1733193493259,0.55,3640.3,3640.2,2.79565748]
[1733193494913,0.55,3640.3,3640.2,0.04855748]
[1733193495081,0.98907153,3640.3,3640.2,0.04855748]
[1733193495280,0.98907153,3640.3,3639.7,2.74746]
[1733193495500,0.98907153,3640.3,3640.2,0.04870454]
[1733193495678,0.55,3639.9,3639.6,0.04445212]
[1733193495880,4.32901529,3639.7,3639.6,0.04445212]
[1733193497076,4.76191682,3639.7,3639.6,0.04445212]
[1733193499699,7.50938682,3639.7,3639.6,0.04445212]
[1733193500080,4.76191682,3639.7,3639.6,0.04445212]
[1733193501819,5.31023418,3639.7,3639.6,0.09165663]
[1733193502227,5.31023418,3639.7,3639.6,0.04445212]
[1733193502725,4.76023418,3639.7,3639.6,0.04445212]
[1733193503028,4.32733265,3639.7,3639.6,0.04445212]
[1733193503321,4.32733265,3639.7,3639.6,0.09165663]
[1733193504320,3.20481529,3639.7,3639.6,2.83920663]
[1733193507114,3.20481529,3639.7,3639.6,0.09165663]
[1733193507299,3.20481529,3639.7,3639.6,2.83920663]
[1733193508075,3.20481529,3639.7,3639.6,0.09165663]
[1733193511473,3.20481529,3639.7,3639.6,2.83920663]
[1733193512260,3.57911553,3639.7,3639.6,0.09165663]
[1733193513466,3.20481529,3639.7,3639.6,0.09165663]
[1733193513669,3.20481529,3639.7,3639.6,2.83920663]
[1733193513973,0.55,3639.7,3639.6,2.83920663]
[1733193514281,2.65481529,3640.6,3640.3,2.747]
[1733193514448,2.65481529,3640.6,3640.0,1.1934]
[1733193514775,2.65481529,3640.6,3640.4,0.0488384]
[1733193515090,3.02986682,3640.6,3640.5,0.04855755]
[1733193515452,0.55,3640.5,3640.4,2.74693]
[1733193517389,3.21454201,3640.6,3640.5,2.74687]
[1733193517593,2.65481529,3641.0,3640.9,2.74657]
[1733193517791,2.65481529,3641.0,3640.6,1.1727]
[1733193517956,2.65481529,3641.0,3640.5,2.74685]
[1733193518587,2.65481529,3640.6,3640.3,2.74701]
[1733193518809,0.55,3640.5,3640.3,2.74701]
[1733193519597,0.55,3640.5,3640.4,2.74695]
[1733193522854,2.65481529,3641.3,3641.1,2.7464]
[1733193523007,1.0896,3642.0,3641.6,2.74604]
[1733193523352,5.04571896,3642.8,3641.6,2.74604]
[1733193523353,1.0896,3642.3,3641.7,0.04765344]
[1733193523645,1.0896,3642.3,3641.6,2.74604]
[1733193523938,2.65481529,3641.7,3641.6,2.74604]
[1733193524147,0.53693488,3641.9,3641.7,0.04765344]
[1733193524343,2.65481529,3641.7,3641.6,0.04767044]
[1733193524517,2.65481529,3641.7,3641.6,2.74604]
[1733193525047,2.65481529,3641.7,3640.9,1.1508]
[1733193525201,0.55,3641.6,3640.9,1.1508]
[1733193525401,0.55,3641.6,3641.4,2.74618]
[1733193528037,1.97977975,3641.6,3640.9,1.1508]
[1733193528234,0.55,3641.6,3641.4,2.74619]
[1733193530022,0.55,3641.6,3641.2,2.79077212]
[1733193530222,3.20481529,3641.3,3641.2,2.79077212]
[1733193533964,0.55,3641.3,3641.2,2.79077212]
[1733193538031,0.55,3641.3,3641.2,2.83803392]
[1733193538238,0.55,3641.3,3641.2,3.51157031]
[1733193539472,0.55,3641.3,3641.2,4.68037031]
[1733193540334,0.55,3641.6,3641.5,2.74604]
[1733193540747,0.55,3641.6,3641.5,2.79290091]
[1733193542191,2.65481529,3641.6,3641.5,2.79290091]
[1733193542398,3.20481529,3641.6,3641.5,2.79290091]
[1733193547585,0.55,3641.9,3641.8,2.74589]
[1733193547776,0.55,3641.9,3641.8,2.79260866]
[1733193548597,0.55,3642.1,3642.0,2.74574]
[1733193548899,0.55,3642.1,3642.0,2.79217628]
[1733193549119,2.65481529,3642.2,3642.0,2.79217628]
[1733193549407,2.65481529,3643.0,3642.8,2.74513]
[1733193549716,2.65481529,3643.0,3642.9,0.04622763]
[1733193550673,3.19447915,3643.0,3642.9,0.04622763]
[1733193551314,3.74447915,3643.0,3642.9,0.04622763]
[1733193551514,3.74447915,3643.0,3642.9,2.79128763]
[1733193551713,3.20481529,3643.0,3642.9,2.79128763]
[1733193554691,0.55,3643.2,3642.9,2.79128763]
[1733193555015,3.20481529,3643.0,3642.9,2.79128763]
[1733193559029,3.17269062,3643.0,3642.9,2.79128763]
[1733193559233,0.55,3643.2,3643.1,2.74491]
[1733193559433,3.20481529,3643.2,3643.1,2.79024725]
[1733193559592,3.20481529,3643.2,3643.1,0.04533725]
[1733193559793,3.20481529,3643.2,3642.6,2.74523]
[1733193559993,3.20481529,3643.2,3642.7,0.04540519]
[1733193560243,0.55,3643.2,3642.7,0.04540519]
[1733193560445,0.55,3643.2,3643.1,2.74491]
[1733193560643,0.55,3643.2,3643.1,3.93024725]
[1733193562142,2.65481529,3643.7,3643.6,2.74453]
[1733193562546,2.65481529,3643.7,3643.6,2.78941763]
[1733193563324,0.55,3644.0,3643.8,2.74438]
[1733193563525,2.65481529,3644.1,3643.6,0.04488763]
[1733193563728,2.65481529,3644.1,3643.9,0.04477593]
[1733193563970,2.65481529,3644.1,3643.8,3.85052]
[1733193564166,2.65481529,3644.1,3644.0,2.78898896]
[1733193564375,2.65481529,3644.1,3644.0,2.74423]
[1733193564680,2.65481529,3644.1,3644.0,2.78898896]
[1733193564977,3.20481529,3644.1,3644.0,2.78898896]
[1733193565151,1.1377,3644.5,3644.0,2.78898896]
[1733193565152,0.54640783,3644.3,3644.2,2.74408]
[1733193565477,3.20122312,3644.3,3644.2,2.78880501]
[1733193565688,2.65481529,3644.3,3644.2,2.78880501]
[1733193565978,0.1604501,3644.9,3644.3,3.86201]
[1733193566181,0.1604501,3644.9,3644.8,2.74363]
[1733193566536,0.1604501,3644.9,3644.8,3.8937532]
[1733193567353,0.1604501,3644.9,3644.8,2.7882532]
[1733193567732,0.1604501,3644.9,3644.8,0.0446232]
[1733193567883,0.7104501,3644.9,3644.8,2.7882532]
[1733193568043,0.7104501,3644.9,3644.8,2.74363]
[1733193568239,0.7104501,3644.9,3644.8,2.78792409]
[1733193568487,0.1604501,3644.9,3644.8,2.78792409]
[1733193569879,0.7104501,3644.9,3644.8,2.78792409]
[1733193570889,0.7104501,3644.9,3644.8,0.04429409]
[1733193571043,3.70229193,3644.9,3644.8,0.04429409]
[1733193571369,3.70229193,3644.9,3644.5,2.74384]
[1733193571370,0.55,3644.8,3644.5,2.74384]
[1733193571895,0.55,3644.8,3644.7,2.74371]
[1733193572064,0.55,3644.8,3644.1,1.0838]
[1733193572268,0.55,3644.8,3644.5,2.74378]
[1733193572502,1.1166,3644.7,3644.3,2.744]
[1733193572807,0.55,3644.6,3644.5,2.74386]
[1733193573271,0.55,3644.6,3644.1,1.0838]
[1733193573687,0.55,3644.6,3644.3,2.74393]
[1733193574015,0.55,3644.6,3644.4,2.74391]
[1733193574302,0.55,3644.6,3644.5,2.74386]
[1733193574881,0.1604501,3644.9,3644.8,2.74363]
[1733193575092,0.1604501,3644.9,3644.8,2.77106528]
[1733193575403,0.1604501,3644.9,3644.8,2.74363]
[1733193576305,0.7104501,3644.9,3644.8,2.74363]
[1733193578267,0.7104501,3644.9,3644.8,3.409659]
[1733193579250,0.7104501,3644.9,3644.8,2.74363]
[1733193580696,0.7104501,3644.9,3644.8,3.87383]
[1733193583139,0.7104501,3644.9,3644.8,3.91640295]
[1733193586852,0.1604501,3644.9,3644.8,3.91640295]
[1733193588542,0.7104501,3644.9,3644.8,2.78620295]
[1733193589032,0.66599798,3644.9,3644.8,2.78620295]
[1733193589221,0.66599798,3644.9,3644.8,3.45552924]
[1733193593908,0.11599798,3644.9,3644.8,3.45552924]
[1733193594132,0.11599798,3644.9,3644.8,4.59082924]
[1733193599075,7.98e-06,3644.9,3644.8,7.59082924]
[1733193599278,7.98e-06,3645.2,3645.1,2.7434]
[1733193599476,7.98e-06,3645.2,3645.1,8.18300071]
[1733193600834,7.98e-06,3645.6,3645.1,7.11250071]
[1733193601041,7.98e-06,3645.6,3645.5,6.8136]
[1733193601234,7.98e-06,3645.6,3645.5,6.85520947]
[1733193605857,7.98e-06,3645.6,3645.5,5.78470947]
[1733193606154,7.98e-06,3645.6,3645.5,6.75095742]
[1733193607257,7.98e-06,3645.6,3645.5,7.02585742]
[1733193609596,7.98e-06,3645.6,3645.5,8.16895742]
[1733193611903,7.98e-06,3645.6,3645.5,8.72710716]
[1733193612302,7.98e-06,3645.6,3645.5,8.16895742]
[1733193615531,7.98e-06,3645.6,3645.5,7.02585742]
[1733193615731,7.98e-06,3645.6,3645.5,5.78470947]
[1733193616418,7.98e-06,3645.6,3645.5,2.78470947]
[1733193617203,7.98e-06,3645.6,3645.5,3.05960947]
[1733193617735,7.98e-06,3645.6,3645.5,2.78470947]
[1733193619047,7.98e-06,3645.6,3645.5,2.71875643]
[1733193619751,7.98e-06,3645.6,3645.5,0.04160947]
[1733193619950,1.63640798,3645.6,3645.5,0.04160947]
[1733193620108,1.0864,3645.5,3645.0,2.74346]
[1733193620309,1.6815,3645.2,3645.0,2.74346]
[1733193620754,1.6815,3645.2,3644.5,2.7438]
[1733193620962,1.6815,3645.2,3645.1,2.7434]
[1733193621333,1.08600798,3645.6,3645.5,2.7431]
[1733193621551,0.55000798,3645.6,3645.5,2.7431]
[1733193621723,7.98e-06,3645.6,3645.5,2.7431]
[1733193622254,7.98e-06,3645.6,3644.9,2.7435]
[1733193622462,0.55,3645.4,3645.0,2.74347]
[1733193622664,0.55,3645.4,3644.7,3.0]
[1733193622959,0.55,3645.4,3645.3,2.74325]
[1733193623478,7.98e-06,3645.6,3645.5,2.7431]
[1733193627125,1.638,3645.5,3644.8,3.0]
[1733193627478,1.638,3645.1,3644.2,1.1544]
[1733193627625,0.55,3644.7,3644.6,2.74377]
[1733193628065,0.55,3644.7,3644.6,2.78428165]
[1733193630488,0.55,3644.7,3643.2,0.3277924]
[1733193630489,1.124,3643.9,3641.3,2.74627]
[1733193630688,2.65481529,3643.0,3642.7,2.74517]
[1733193630902,0.55,3642.9,3642.2,2.74553]
[1733193631169,0.55,3642.9,3642.5,2.74529]
[1733193631367,0.55,3642.9,3642.3,0.274553]
[1733193631733,1.674,3643.4,3643.3,2.74476]
[1733193632668,0.55,3643.7,3643.3,2.74476]
[1733193632871,0.55,3643.7,3643.6,2.74453]
[1733193634864,3.76681529,3644.2,3643.6,2.74453]
[1733193635065,3.76681529,3644.2,3643.9,2.7443]
[1733193635290,3.76681529,3644.2,3644.1,2.74416]
[1733193635560,2.65481529,3644.2,3644.1,2.74416]
[1733193636097,1.1318,3643.1,3641.5,1.1034]
[1733193636275,2.94452,3643.7,3641.5,1.1034]
[1733193636276,1.1318,3642.3,3641.6,2.74603]
[1733193636467,1.1318,3643.1,3643.0,2.74499]
[1733193636668,1.6818,3643.1,3643.0,2.74499]
[1733193638107,1.6818,3643.1,3643.0,2.82864399]
[1733193638980,0.55,3643.3,3643.0,0.08365399]
[1733193639189,0.55,3643.3,3643.2,2.74483]
[1733193639622,0.55,3643.3,3643.2,2.82840668]
[1733193640382,2.65481529,3643.8,3643.3,2.74476]
[1733193640811,2.65481529,3643.8,3643.4,0.08410115]
[1733193641019,1.1392,3644.2,3644.1,2.74416]
[1733193641282,1.0821,3645.5,3644.4,3.0]
[1733193641517,7.98e-06,3645.6,3645.5,2.7431]
[1733193641835,7.98e-06,3645.6,3645.5,5.7431]
[1733193642017,7.98e-06,3645.6,3645.5,2.85424562]
[1733193642220,7.98e-06,3645.6,3645.5,2.82681466]
[1733193642594,7.98e-06,3645.6,3645.5,5.82681466]
[1733193642933,7.98e-06,3645.6,3645.5,6.41223897]
[1733193643285,7.98e-06,3645.6,3645.5,7.59793897]
[1733193645427,7.98e-06,3646.6,3646.5,2.74235]
[1733193645695,7.98e-06,3646.6,3646.5,7.02168236]
[1733193645928,7.98e-06,3646.6,3646.5,8.06606668]
[1733193646932,0.005,3648.2,3648.1,2.74115]
[1733193647127,1e-05,3648.2,3648.1,5.81821765]
[1733193647450,1e-05,3648.2,3648.1,2.81821765]
[1733193647600,1.28191,3648.5,3648.4,5.74092]
[1733193647802,4.54780687,3648.5,3648.1,0.07641144]
[1733193648049,1e-05,3648.5,3648.3,2.74096]
[1733193648417,1e-05,3648.5,3648.4,0.07054786]
[1733193650038,1e-05,3648.5,3647.7,4.1722]
[1733193650408,1e-05,3648.5,3647.8,0.07059759]
[1733193650615,0.55,3647.9,3647.8,0.07059759]
[1733193650796,1e-05,3648.5,3647.3,5.4835]
[1733193651001,1e-05,3648.5,3648.3,2.74096]
[1733193651425,1e-05,3648.5,3648.4,0.06815494]
[1733193651852,1e-05,3648.5,3648.4,3.06815494]
[1733193652332,1e-07,3648.6,3648.5,2.74085]
[1733193652504,1e-07,3648.6,3648.5,5.74085]
[1733193652711,1e-07,3648.6,3648.5,7.65218044]
[1733193652918,1e-07,3648.6,3648.5,7.72014089]
[1733193660663,1e-07,3648.6,3648.5,5.80881045]
[1733193661367,1e-07,3648.6,3648.5,7.05591045]
[1733193663183,0.55,3649.9,3648.9,3.0]
[1733193663397,0.55,3649.9,3649.4,2.74012]
[1733193663675,0.23148,3649.8,3649.0,0.06661762]
[1733193663874,0.23148,3649.8,3649.6,2.74001]
[1733193664236,0.78148,3649.8,3649.7,0.06648914]
[1733193664434,0.78148,3649.8,3648.9,3.0]
[1733193664641,0.78148,3649.8,3649.7,0.06648914]
[1733193664862,0.78148,3649.8,3649.1,3.0]
[1733193665066,0.55,3649.9,3649.7,0.06648914]
[1733193666074,0.55,3649.9,3649.1,2.74033]
[1733193666075,0.55,3649.7,3648.1,2.346349]
[1733193666379,0.55,3649.7,3648.1,1.096449]
[1733193666380,0.55,3649.0,3648.1,1.096449]
[1733193666676,0.55,3649.0,3647.9,2.7413]
[1733193666837,0.55,3649.0,3647.9,3.14042]
[1733193667037,0.55,3649.0,3648.3,2.74095]
[1733193667243,0.55,3649.0,3647.9,3.41442]
[1733193667478,0.55,3649.0,3648.5,2.74084]
[1733193668384,0.55,3649.0,3648.3,2.74097]
[1733193668538,0.55,3649.0,3648.1,3.0]
[1733193668744,0.55,3649.0,3648.9,2.74055]
[1733193671082,0.55,3649.0,3647.9,3.67312]
[1733193671083,3.668242,3649.0,3647.9,3.274]
[1733193671374,3.668242,3649.0,3647.4,0.66865141]
[1733193671375,0.55,3648.5,3648.4,2.74092]
[1733193671681,0.23349124,3649.9,3649.0,2.74045]
[1733193671682,1.8125,3649.8,3649.0,2.74045]
[1733193671840,1.8125,3649.8,3649.1,2.74037]
[1733193672039,0.55,3649.0,3648.6,2.7407]
[1733193672241,0.55,3649.0,3648.9,2.74055]
[1733193672943,1.2625,3649.1,3649.0,2.74047]
[1733193673158,1.8125,3649.1,3649.0,2.74047]
[1733193673484,1.8125,3649.1,3649.0,2.80504758]
[1733193673978,1.99375,3649.1,3649.0,0.06457758]
[1733193674152,1.99375,3649.1,3647.7,0.274]
[1733193674354,0.58349124,3649.0,3647.7,0.274]
[1733193674673,3.118242,3648.7,3647.8,0.06475269]
[1733193674860,1.07141544,3648.6,3647.8,0.06475269]
[1733193675046,0.55,3648.0,3647.2,2.74179]
[1733193675388,0.55,3647.8,3647.2,2.74175]
[1733193675683,1.211,3648.1,3647.3,2.74171]
[1733193675684,0.55,3648.0,3647.3,2.74171]
[1733193675861,0.55,3648.0,3647.3,2.7417]
[1733193676058,0.55,3647.8,3647.4,2.74165]
[1733193676371,0.55,3647.8,3647.5,2.74153]
[1733193677056,0.55,3647.8,3647.3,2.74174]
[1733193677259,0.55,3647.8,3647.1,2.7419]
[1733193677474,0.58349124,3647.8,3647.4,2.74165]
[1733193677669,0.78055036,3647.8,3647.4,2.74165]
[1733193677849,0.74705912,3647.8,3647.6,2.74151]
[1733193678047,0.55,3648.0,3647.7,2.74145]
[1733193678280,0.55,3648.0,3647.9,2.7413]
[1733193678480,1.3129,3648.9,3648.6,2.74076]
[1733193678698,1.3129,3648.9,3648.4,2.74092]
[1733193678852,1.3129,3648.9,3647.6,2.74152]
[1733193679049,1.7741392,3648.9,3647.7,0.395882]
[1733193679248,0.03349124,3648.8,3648.3,2.74098]
[1733193679448,1.80763044,3648.9,3648.3,2.74098]
[1733193679674,1.80763044,3648.9,3647.8,2.74137]
[1733193679873,1.80763044,3648.9,3648.4,2.74092]
[1733193680352,1.7741392,3648.9,3648.4,2.74092]
[1733193680659,0.50736312,3648.8,3648.4,2.74092]
[1733193680853,0.55,3648.7,3647.6,2.74152]
[1733193681204,0.55,3648.7,3648.5,2.74083]
[1733193681346,1.3129,3648.9,3648.6,2.74077]
[1733193681551,1.3129,3648.9,3648.8,2.74062]
[1733193682485,1.3129,3648.9,3648.7,2.74068]
[1733193682694,1.8629,3648.9,3648.8,2.74062]
[1733193683677,0.55,3648.8,3648.6,2.74074]
[1733193683995,0.58349124,3648.8,3648.6,2.74074]
[1733193684357,1.2943,3649.6,3648.7,2.7407]
[1733193684700,1.2943,3649.6,3648.4,2.74092]
[1733193684857,1.2943,3649.6,3648.3,4.3238]
[1733193684858,1.2943,3649.6,3648.3,1.3238]
[1733193685058,1.2943,3649.6,3648.5,3.0]
[1733193685259,1.2943,3649.6,3649.5,2.7401]
[1733193685792,1.8443,3649.6,3649.5,2.7401]
[1733193687300,0.55,3649.5,3649.3,2.7402]
[1733193687660,0.58349124,3649.4,3649.3,2.7402]
[1733193687861,0.55,3649.4,3649.3,2.7402]
[1733193688131,1.04960332,3649.4,3649.3,2.80523552]
[1733193688698,1.04960332,3649.4,3649.3,0.06503552]
[1733193688995,1.04960332,3649.4,3649.3,2.74025]
[1733193689355,1.04960332,3649.4,3649.3,2.80528552]
[1733193689960,0.55,3649.4,3649.3,2.80528552]
[1733193690200,0.55,3649.5,3649.3,2.80528552]
[1733193691073,0.55,3649.5,3649.4,2.74017]
[1733193691466,0.55,3649.5,3649.4,2.80518717]
[1733193694315,0.55,3649.8,3649.4,0.06501717]
[1733193694519,0.55,3649.5,3649.1,2.74037]
[1733193695028,0.55,3649.5,3649.2,2.80476053]
[1733193695228,0.55,3649.5,3649.2,0.06448053]
[1733193695389,0.55,3649.3,3649.0,2.74046]
[1733193695585,0.55,3649.3,3649.1,0.06449888]
[1733193695888,0.55,3649.2,3649.1,0.06449888]
[1733193696121,0.55,3649.2,3648.8,2.74062]
[1733193696330,1.7675,3649.2,3649.1,0.06449888]
[1733193696539,1.7675,3649.2,3648.6,2.74077]
[1733193696540,4.885742,3649.2,3648.6,2.74077]
[1733193696838,0.55,3649.0,3648.6,2.74077]
[1733193697038,0.55,3649.0,3647.8,1.2103]
[1733193697221,1.2175,3649.9,3649.4,2.74012]
[1733193697385,0.55,3649.8,3648.7,2.74064]
[1733193697591,0.55,3649.8,3649.3,2.74024]
[1733193697790,0.5385742,3649.7,3648.6,1.2103]
[1733193698090,0.5385742,3649.7,3649.5,2.7401]
[1733193698804,0.55,3649.6,3649.5,2.7401]
[1733193699432,0.55,3649.6,3649.0,2.74045]
[1733193700004,0.55,3649.6,3649.4,2.74015]
[1733193700347,1.8876,3649.5,3649.4,2.74015]
[1733193700502,0.55,3649.4,3648.5,2.74079]
[1733193700705,0.55,3649.2,3648.7,2.74067]
[1733193700948,0.55,3649.2,3648.4,1.5196]
[1733193701129,0.55,3649.4,3648.6,2.74077]
[1733193701334,0.81567816,3649.4,3648.7,2.74067]
[1733193701643,0.81567816,3649.4,3649.1,2.74039]
[1733193702946,0.81567816,3649.4,3648.4,1.2456]
[1733193703115,0.55,3649.4,3649.2,0.06448053]
[1733193703333,0.55,3649.4,3648.4,1.2456]
[1733193703520,0.55,3649.4,3649.3,0.06446217]
[1733193703719,0.55,3649.4,3649.2,2.7403]
[1733193703956,0.55,3649.4,3649.3,0.0644722]
[1733193704159,0.79261742,3649.4,3649.3,0.0644722]
[1733193704324,0.79261742,3649.4,3649.0,2.74045]
[1733193704533,0.79261742,3649.4,3649.3,0.0644722]
[1733193704868,2.29815994,3650.0,3649.9,2.7398]
[1733193705167,0.5,3650.0,3649.9,2.7398]
[1733193705451,0.5,3650.0,3649.9,2.80416209]
[1733193708219,0.5,3650.0,3649.9,4.03346209]
[1733193709170,0.5,3650.0,3649.9,2.80416209]
[1733193709475,1.05,3650.0,3649.9,2.80416209]
[1733193709829,1.2436,3651.0,3650.0,1.2145]
[1733193710031,1.2436,3651.0,3650.9,2.73905]
[1733193710261,1.2436,3651.0,3650.9,2.8028717]
[1733193710473,1.2436,3651.0,3650.9,0.0638217]
[1733193710970,1.2436,3651.0,3650.0,1.2145]
[1733193711274,0.03349124,3651.1,3650.8,2.73911]
[1733193711454,1.78075052,3651.3,3650.2,2.73957]
[1733193711760,1.78075052,3651.3,3650.9,0.06368097]
[1733193712079,1.2436,3651.3,3651.0,0.06365761]
[1733193712228,1.2436,3651.3,3651.1,2.73889]
[1733193712425,1.2436,3651.3,3651.2,0.06352042]
[1733193712664,1.7936,3651.3,3651.2,0.06352042]
[1733193713171,0.55,3651.2,3651.1,2.73888]
[1733193713335,0.55,3651.2,3650.6,2.73923]
[1733193713659,0.55,3651.2,3651.0,2.73892]
[1733193713862,0.58349124,3651.2,3650.8,2.73905]
[1733193714062,0.58349124,3651.2,3650.4,2.73942]
[1733193714063,0.58349124,3651.2,3650.9,2.73903]
[1733193714559,0.58349124,3651.2,3650.4,2.73935]
[1733193714862,0.58349124,3651.2,3650.7,2.73919]
[1733193714863,0.55,3651.0,3650.7,2.73919]
[1733193715072,0.55,3651.0,3650.8,2.73911]
[1733193715235,0.55,3651.0,3650.4,2.73936]
[1733193715562,0.55,3651.0,3650.6,1.2467]
[1733193715770,0.55,3651.3,3650.6,1.2467]
[1733193716130,0.55,3651.3,3650.9,2.73904]
[1733193717727,0.55,3651.3,3651.1,2.73887]
[1733193717952,0.55,3651.3,3651.2,2.73882]
[1733193718149,0.55,3651.6,3651.5,2.7386]
[1733193718552,0.55,3651.6,3651.5,0.06257063]
[1733193719071,0.55585714,3651.7,3651.5,1.39427063]
[1733193719237,1.3968501,3652.2,3651.7,2.73845]
[1733193719773,1.3968501,3652.2,3651.7,2.80085333]
[1733193720175,0.03349124,3652.1,3651.7,0.06240333]
[1733193720474,0.03349124,3652.1,3651.0,1.5164]
[1733193720475,0.5935158,3652.1,3651.6,2.73847]
[1733193720641,1.3,3651.8,3651.7,0.06240333]
[1733193721233,1.3,3651.8,3651.7,2.80085333]
[1733193721746,1.3,3651.8,3651.7,0.06240333]
[1733193721946,1.48935158,3651.8,3651.7,0.06240333]
[1733193722271,0.55,3651.7,3651.0,1.5164]
[1733193722580,0.93935158,3651.8,3651.0,1.5164]
[1733193722581,0.55,3651.5,3651.4,2.73866]
[1733193722956,0.55,3651.5,3651.4,2.80111833]
[1733193723177,0.55,3651.7,3651.4,2.80111833]
[1733193723393,0.03349124,3651.6,3651.4,2.80111833]
[1733193724381,0.55,3651.5,3651.4,0.06245833]
[1733193724569,2.26714731,3651.5,3651.4,0.06245833]
[1733193724771,2.26714731,3651.5,3651.1,2.73882]
[1733193724973,2.26714731,3651.5,3651.4,0.06245833]
[1733193725287,2.26714731,3651.5,3651.4,0.06236791]
[1733193725488,1.8149,3651.5,3651.4,0.06236791]
[1733193725647,1.8149,3651.5,3651.2,2.73881]
[1733193725853,1.8149,3651.5,3651.4,0.06236791]
[1733193726055,2.37109206,3651.5,3651.3,0.06238624]
[1733193726254,2.37109206,3651.5,3651.0,2.73892]
[1733193726505,2.37109206,3651.5,3651.4,0.06236791]
[1733193726793,2.94709946,3651.5,3651.0,2.73892]
[1733193726996,2.94709946,3651.5,3651.4,0.06228752]
[1733193727177,2.94709946,3651.5,3651.1,2.73889]
[1733193727390,2.94709946,3651.5,3651.4,0.06025077]
[1733193727555,2.37109206,3651.5,3650.4,4.2937]
[1733193727764,2.37109206,3651.5,3651.4,0.06025077]
[1733193727963,1.8149,3651.5,3650.8,2.73908]
[1733193728197,1.8149,3651.5,3651.4,0.06026584]
[1733193728357,1.8149,3651.5,3651.0,2.7389]
[1733193728555,1.8149,3651.5,3651.4,0.06026584]
[1733193728758,1.8149,3651.5,3651.3,2.73872]
[1733193728983,0.55,3651.5,3651.4,2.73867]
[1733193729215,0.55,3651.5,3651.4,2.79893584]
[1733193729390,0.55,3651.5,3651.4,0.06026584]
[1733193729706,0.55,3651.5,3651.1,1.3356]
[1733193729993,0.55,3651.5,3651.4,0.06026584]
[1733193730204,0.55,3651.5,3651.4,2.73867]
[1733193730379,0.75,3651.8,3651.4,0.06026584]
[1733193730560,0.55,3651.7,3651.6,2.73852]
[1733193730959,0.55,3651.7,3651.6,2.79874918]
[1733193732010,0.75,3651.8,3651.7,2.73845]
[1733193732297,0.75,3651.8,3651.7,3.35239576]